fUSD/lending_fUSD_20251014
["ID","MTS","AMOUNT","RATE_DAILY","PERIOD"]
[391257452,1760443841011,-512.35,0.00019178,2]
[391257453,1760443841020,-500.0,0.00019178,2]
[391257454,1760443841029,-881.63,0.00019178,2]
[391257455,1760443841038,-599.17,0.00019178,2]
[391257456,1760443841048,-564.7,0.00019178,2]
[391257457,1760443841061,-500.0,0.00019178,2]
[391257458,1760443841070,-500.0,0.00019178,2]
[391257459,1760443841080,-500.0,0.00019178,2]
[391257460,1760443841088,-500.0,0.00019178,2]
[391257461,1760443841098,-500.0,0.00019178,2]
[391257462,1760443841108,-705.69,0.00019178,2]
[391257463,1760443841117,-500.0,0.00019178,2]
[391257464,1760443841126,-500.0,0.00019178,2]
[391257465,1760443841138,-1162.23,0.00019178,2]
[391257466,1760443841147,-1150.41,0.00019178,2]
[391257467,1760443841157,-500.0,0.00019178,2]
[391257468,1760443841166,-535.76,0.00019178,2]
[391257469,1760443841175,-587.28,0.00019178,2]
[391257470,1760443841184,-500.0,0.00019178,2]
[391257471,1760443841193,-679.08,0.00019178,2]
[391257472,1760443841202,-500.0,0.00019178,2]
[391257473,1760443841211,-500.0,0.00019178,2]
[391257474,1760443841221,-500.0,0.00019178,2]
[391257475,1760443841230,-500.0,0.00019178,2]
[391257476,1760443841239,-875.0,0.00019178,2]
[391257477,1760443841249,-500.0,0.00019178,2]
[391257478,1760443841258,-500.0,0.00019178,2]
[391257479,1760443841267,-500.0,0.00019178,2]
[391257480,1760443841276,-500.0,0.00019178,2]
[391257481,1760443841286,-500.0,0.00019178,2]
[391257482,1760443841295,-500.0,0.00019178,2]
[391257483,1760443841306,-500.0,0.00019178,2]
[391257484,1760443841315,-724.9,0.00019178,2]
[391257485,1760443841323,-500.0,0.00019178,2]
[391257486,1760443841332,-500.0,0.00019178,2]
[391257487,1760443841342,-500.0,0.00019178,2]
[391257488,1760443841351,-500.0,0.00019178,2]
[391257489,1760443841360,-151.0,0.00019178,2]
[391257490,1760443841369,-934.82740677,0.0001923,2]
[391257491,1760443841378,-151.0,0.00019367,2]
[391257492,1760443841387,-151.0,0.00019367,2]
[391257493,1760443841396,-151.0,0.00019367,2]
[391257494,1760443841406,-151.0,0.00019367,2]
[391257495,1760443841415,-203.31053783,0.00019367,2]
[391257496,1760443841424,-151.0,0.00019367,2]
[391257497,1760443841433,-934.82740677,0.00019382,2]
[391257498,1760443841442,-151.0,0.00019448,2]
[391257499,1760443841451,-166.66,0.00019449,2]
[391257500,1760443841461,-1956.01,0.00019451,2]
[391257501,1760443841471,-1548.14,0.00019451,2]
[391257502,1760443841480,-500.0,0.00019451,2]
[391257503,1760443841489,-1472.64,0.00019451,2]
[391257504,1760443841499,-1827.09,0.00019451,2]
[391257505,1760443841508,-1304.24,0.00019451,2]
[391257506,1760443841517,-923.29,0.00019451,2]
[391257507,1760443841526,-500.0,0.00019451,2]
[391257508,1760443841535,-31.4135073,0.00019451,2]
[391257509,1760443841655,-468.5864927,0.00019451,2]
[391257510,1760443841666,-842.64,0.00019451,2]
[391257511,1760443841676,-1926.85,0.00019451,2]
[391257512,1760443841686,-500.0,0.00019451,2]
[391257513,1760443841695,-592.94,0.00019451,2]
[391257514,1760443841704,-700.64,0.00019451,2]
[391257515,1760443841715,-454.77827519,0.00019451,2]
[391257516,1760443841725,-1701.47,0.00019451,2]
[391257517,1760443841735,-2042.48,0.00019451,2]
[391257518,1760443841745,-981.12,0.00019451,2]
[391257519,1760443841754,-512.81,0.00019451,2]
[391257520,1760443841764,-1650.12,0.00019451,2]
[391257521,1760443841773,-500.0,0.00019451,2]
[391257522,1760443841783,-405.59401096,0.00019451,2]
[391257523,1760443841792,-500.0,0.00019451,2]
[391257524,1760443841804,-739.74,0.00019451,2]
[391257525,1760443841813,-500.0,0.00019451,2]
[391257526,1760443841822,-2306.23,0.00019451,2]
[391257527,1760443841831,-500.0,0.00019451,2]
[391257528,1760443841840,-1338.14,0.00019451,2]
[391257529,1760443841849,-500.0,0.00019451,2]
[391257530,1760443841858,-1529.28,0.00019451,2]
[391257531,1760443841867,-529.77,0.00019451,2]
[391257532,1760443841876,-500.0,0.00019451,2]
[391257533,1760443841885,-611.38,0.00019451,2]
[391257534,1760443841895,-500.0,0.00019451,2]
[391257535,1760443841904,-783.37,0.00019451,2]
[391257536,1760443841914,-500.0,0.00019451,2]
[391257537,1760443841923,-1415.24,0.00019451,2]
[391257538,1760443841932,-612.62,0.00019451,2]
[391257539,1760443841941,-500.0,0.00019451,2]
[391257540,1760443841950,-401.50300345,0.00019451,2]
[391257541,1760443841959,-2710.43,0.00019451,2]
[391257542,1760443841968,-500.0,0.00019451,2]
[391257543,1760443841977,-1228.83,0.00019451,2]
[391257544,1760443841987,-500.0,0.00019451,2]
[391257545,1760443841996,-980.24,0.00019451,2]
[391257546,1760443842005,-500.0,0.00019451,2]
[391257547,1760443842014,-2460.96,0.00019451,2]
[391257548,1760443842023,-500.0,0.00019451,2]
[391257549,1760443842032,-508.3782614,0.00019451,2]
[391257550,1760443842041,-3652.58,0.00019451,2]
[391257551,1760443842050,-955.44,0.00019451,2]
[391257552,1760443842063,-500.0,0.00019451,2]
[391257553,1760443842073,-500.0,0.00019451,2]
[391257554,1760443842082,-421.1317773,0.00019451,2]
[391257555,1760443842091,-384.80411125,0.00019451,2]
[391257556,1760443842100,-500.0,0.00019451,2]
[391257557,1760443842110,-151.91598947,0.00019451,2]
[391257558,1760443842120,-937.28,0.00019451,2]
[391257559,1760443842129,-411.18919374,0.00019451,2]
[391257560,1760443842139,-648.44,0.00019451,2]
[391257561,1760443842148,-500.0,0.00019451,2]
[391257562,1760443842158,-500.0,0.00019452,2]
[391257563,1760443842168,-500.0,0.00019452,2]
[391257564,1760443842177,-500.0,0.00019452,2]
[391257565,1760443842187,-311.32478767,0.00019452,2]
[391257566,1760443842197,-500.0,0.00019452,2]
[391257567,1760443842206,-1916.95,0.00019452,2]
[391257568,1760443842215,-500.0,0.00019452,2]
[391257569,1760443842224,-669.83,0.00019452,2]
[391257570,1760443842234,-697.16,0.00019452,2]
[391257571,1760443842243,-500.0,0.00019452,2]
[391257572,1760443842252,-1050.12,0.00019452,2]
[391257573,1760443842262,-500.0,0.00019452,2]
[391257574,1760443842271,-500.0,0.00019452,2]
[391257575,1760443842281,-500.0,0.00019452,2]
[391257576,1760443842290,-500.0,0.00019452,2]
[391257577,1760443842301,-500.0,0.00019452,2]
[391257578,1760443842310,-500.0,0.00019452,2]
[391257579,1760443842319,-500.0,0.00019452,2]
[391257580,1760443842328,-716.88,0.00019452,2]
[391257581,1760443842338,-1698.19,0.00019452,2]
[391257582,1760443842347,-500.0,0.00019452,2]
[391257583,1760443842356,-500.0,0.00019452,2]
[391257584,1760443842365,-2120.3,0.00019452,2]
[391257585,1760443842375,-527.88735458,0.00019452,2]
[391257586,1760443842384,-937.61,0.00019452,2]
[391257587,1760443842393,-500.0,0.00019452,2]
[391257588,1760443842402,-964.38,0.00019452,2]
[391257589,1760443842411,-790.41,0.00019452,2]
[391257590,1760443842420,-976.92,0.00019452,2]
[391257591,1760443842429,-500.0,0.00019452,2]
[391257592,1760443842438,-500.0,0.00019452,2]
[391257593,1760443842448,-694.38,0.00019452,2]
[391257594,1760443842457,-500.0,0.00019452,2]
[391257595,1760443842466,-500.0,0.00019452,2]
[391257596,1760443842475,-500.0,0.00019452,2]
[391257597,1760443842484,-500.0,0.00019452,2]
[391257598,1760443842494,-1450.47,0.00019452,2]
[391257599,1760443842503,-500.0,0.00019452,2]
[391257600,1760443842515,-500.0,0.00019452,2]
[391257601,1760443842523,-500.0,0.00019452,2]
[391257602,1760443842532,-500.0,0.00019452,2]
[391257603,1760443842541,-500.0,0.00019452,2]
[391257605,1760443842551,-768.32,0.00019452,2]
[391257607,1760443842560,-583.18551682,0.00019452,2]
[391257609,1760443842568,-500.0,0.00019452,2]
[391257610,1760443842578,-500.0,0.00019452,2]
[391257611,1760443842587,-790.67,0.00019452,2]
[391257612,1760443842595,-500.0,0.00019452,2]
[391257613,1760443842604,-500.0,0.00019452,2]
[391257614,1760443842613,-625.87,0.00019452,2]
[391257615,1760443842623,-500.0,0.00019452,2]
[391257616,1760443842632,-500.0,0.00019452,2]
[391257618,1760443842641,-500.0,0.00019452,2]
[391257619,1760443842650,-500.0,0.00019452,2]
[391257620,1760443842660,-500.0,0.00019452,2]
[391257621,1760443842669,-266.24,0.00019452,2]
[391257622,1760443842678,-405.20301343,0.00019452,2]
[391257623,1760443842687,-626.12320808,0.00019452,2]
[391257624,1760443842696,-500.0,0.00019452,2]
[391257625,1760443842705,-500.0,0.00019452,2]
[391257626,1760443842714,-500.0,0.00019452,2]
[391257627,1760443842724,-500.0,0.00019452,2]
[391257628,1760443842732,-1396.46,0.00019452,2]
[391257629,1760443842742,-500.0,0.00019452,2]
[391257630,1760443842750,-500.0,0.00019452,2]
[391257631,1760443842761,-526.9820605,0.00019452,2]
[391257632,1760443842770,-698.8,0.00019452,2]
[391257633,1760443842779,-500.0,0.00019452,2]
[391257634,1760443842788,-500.0,0.00019452,2]
[391257635,1760443842798,-422.65,0.00019452,2]
[391257636,1760443842808,-2585.36,0.00019452,2]
[391257637,1760443842817,-500.0,0.00019452,2]
[391257638,1760443842827,-500.0,0.00019452,2]
[391257639,1760443842836,-500.0,0.00019452,2]
[391257640,1760443842846,-500.0,0.00019452,2]
[391257641,1760443842855,-500.0,0.00019452,2]
[391257642,1760443842865,-1350.45,0.00019452,2]
[391257643,1760443842874,-500.0,0.00019452,2]
[391257644,1760443842883,-685.87,0.00019452,2]
[391257645,1760443842893,-487.33236875,0.00019452,2]
[391257646,1760443842902,-500.0,0.00019452,2]
[391257647,1760443842911,-516.18,0.00019452,2]
[391257648,1760443842920,-500.0,0.00019452,2]
[391257649,1760443842929,-500.0,0.00019452,2]
[391257650,1760443842938,-1901.83,0.00019452,2]
[391257651,1760443842947,-2217.6,0.00019452,2]
[391257652,1760443842956,-500.0,0.00019452,2]
[391257653,1760443842965,-500.0,0.00019452,2]
[391257654,1760443842975,-778.64,0.00019452,2]
[391257655,1760443842984,-500.0,0.00019452,2]
[391257656,1760443842994,-500.0,0.00019452,2]
[391257657,1760443843004,-500.0,0.00019452,2]
[391257658,1760443843013,-500.0,0.00019452,2]
[391257659,1760443843022,-500.0,0.00019452,2]
[391257660,1760443843325,-690.09,0.00019452,2]
[391257661,1760443843335,-1026.19,0.00019452,2]
[391257662,1760443843344,-500.0,0.00019452,2]
[391257663,1760443843354,-500.0,0.00019452,2]
[391257664,1760443843363,-500.0,0.00019452,2]
[391257665,1760443843373,-2103.2,0.00019452,2]
[391257666,1760443843382,-663.56,0.00019452,2]
[391257667,1760443843391,-500.0,0.00019452,2]
[391257668,1760443843401,-602.54,0.00019452,2]
[391257669,1760443843410,-1327.21,0.00019452,2]
[391257670,1760443843419,-1305.84,0.00019452,2]
[391257671,1760443843428,-500.0,0.00019452,2]
[391257672,1760443843440,-1499.77,0.00019452,2]
[391257673,1760443843449,-500.0,0.00019452,2]
[391257674,1760443843458,-500.0,0.00019452,2]
[391257675,1760443843467,-500.0,0.00019452,2]
[391257676,1760443843476,-500.0,0.00019452,2]
[391257677,1760443843485,-1385.53,0.00019452,2]
[391257678,1760443843495,-500.0,0.00019452,2]
[391257679,1760443843505,-500.0,0.00019452,2]
[391257680,1760443843514,-836.13,0.00019452,2]
[391257681,1760443843524,-500.0,0.00019452,2]
[391257682,1760443843533,-3148.34,0.00019452,2]
[391257683,1760443843542,-555.13,0.00019452,2]
[391257684,1760443843554,-500.0,0.00019452,2]
[391257685,1760443843563,-651.19,0.00019452,2]
[391257686,1760443843573,-500.0,0.00019452,2]
[391257687,1760443843582,-1655.59,0.00019452,2]
[391257688,1760443843591,-500.0,0.00019452,2]
[391257689,1760443843601,-500.0,0.00019452,2]
[391257690,1760443843611,-500.0,0.00019452,2]
[391257691,1760443843621,-500.0,0.00019452,2]
[391257692,1760443843630,-589.4,0.00019452,2]
[391257693,1760443843643,-500.0,0.00019452,2]
[391257694,1760443843652,-500.0,0.00019452,2]
[391257695,1760443843662,-500.0,0.00019452,2]
[391257696,1760443843672,-500.0,0.00019452,2]
[391257697,1760443843681,-1251.26,0.00019452,2]
[391257698,1760443843690,-500.0,0.00019452,2]
[391257699,1760443843699,-500.0,0.00019452,2]
[391257700,1760443843709,-500.0,0.00019452,2]
[391257701,1760443843718,-831.81,0.00019452,2]
[391257702,1760443843727,-500.0,0.00019452,2]
[391257703,1760443843736,-500.0,0.00019452,2]
[391257704,1760443843746,-1140.15,0.00019452,2]
[391257705,1760443843755,-500.0,0.00019452,2]
[391257706,1760443843765,-577.62,0.00019452,2]
[391257707,1760443843774,-500.0,0.00019452,2]
[391257708,1760443843783,-560.41,0.00019452,2]
[391257709,1760443843792,-500.0,0.00019452,2]
[391257710,1760443843802,-500.0,0.00019452,2]
[391257711,1760443843811,-500.0,0.00019452,2]
[391257712,1760443843820,-500.0,0.00019452,2]
[391257713,1760443843829,-668.47,0.00019452,2]
[391257714,1760443843841,-2040.42,0.00019452,2]
[391257715,1760443843851,-500.0,0.00019452,2]
[391257716,1760443843860,-500.0,0.00019452,2]
[391257717,1760443843869,-500.0,0.00019452,2]
[391257718,1760443843879,-500.0,0.00019452,2]
[391257719,1760443843888,-570.41,0.00019452,2]
[391257720,1760443843897,-503.33,0.00019452,2]
[391257721,1760443843906,-500.0,0.00019452,2]
[391257722,1760443843915,-594.17,0.00019452,2]
[391257723,1760443843925,-763.55,0.00019452,2]
[391257724,1760443843934,-500.0,0.00019452,2]
[391257725,1760443843944,-1500.73,0.00019452,2]
[391257726,1760443843954,-1589.11,0.00019452,2]
[391257727,1760443843964,-586.52,0.00019452,2]
[391257728,1760443843973,-500.0,0.00019452,2]
[391257729,1760443843983,-500.0,0.00019452,2]
[391257730,1760443843993,-500.0,0.00019452,2]
[391257731,1760443844002,-278.53387869,0.00019452,2]
[391257732,1760443844012,-500.0,0.00019452,2]
[391257733,1760443844021,-731.42,0.00019452,2]
[391257734,1760443844031,-500.0,0.00019452,2]
[391257735,1760443844040,-591.81,0.00019452,2]
[391257736,1760443844050,-500.0,0.00019452,2]
[391257737,1760443844062,-530.96,0.00019452,2]
[391257738,1760443844071,-501.18,0.00019452,2]
[391257739,1760443844081,-710.48,0.00019452,2]
[391257740,1760443844091,-500.0,0.00019452,2]
[391257741,1760443844102,-500.0,0.00019452,2]
[391257742,1760443844111,-500.0,0.00019452,2]
[391257743,1760443844121,-665.64,0.00019452,2]
[391257744,1760443844131,-500.0,0.00019452,2]
[391257745,1760443844142,-500.0,0.00019452,2]
[391257746,1760443844152,-500.0,0.00019452,2]
[391257747,1760443844161,-512.35,0.00019452,2]
[391257748,1760443844171,-500.0,0.00019452,2]
[391257749,1760443844181,-881.63,0.00019452,2]
[391257750,1760443844190,-599.17,0.00019452,2]
[391257751,1760443844200,-564.7,0.00019452,2]
[391257752,1760443844209,-500.0,0.00019452,2]
[391257753,1760443844225,-500.0,0.00019452,2]
[391257754,1760443844239,-625.4574833,0.00019452,2]
[391257755,1760443844249,-500.0,0.00019452,2]
[391257756,1760443844259,-500.0,0.00019452,2]
[391257757,1760443844268,-705.69,0.00019452,2]
[391257758,1760443844279,-500.0,0.00019452,2]
[391257759,1760443844288,-500.0,0.00019452,2]
[391257760,1760443844300,-1162.23,0.00019452,2]
[391257761,1760443844310,-1150.41,0.00019452,2]
[391257762,1760443844320,-500.0,0.00019452,2]
[391257763,1760443844330,-535.76,0.00019452,2]
[391257764,1760443844340,-587.28,0.00019452,2]
[391257765,1760443844350,-500.0,0.00019452,2]
[391257766,1760443844359,-679.08,0.00019452,2]
[391257767,1760443844369,-500.0,0.00019452,2]
[391257768,1760443844379,-500.0,0.00019452,2]
[391257769,1760443844389,-500.0,0.00019452,2]
[391257770,1760443844399,-523.68858908,0.00019452,2]
[391257771,1760443844409,-875.0,0.00019452,2]
[391257772,1760443844418,-500.0,0.00019452,2]
[391257773,1760443844428,-500.0,0.00019452,2]
[391257774,1760443844438,-500.0,0.00019452,2]
[391257775,1760443844447,-500.0,0.00019452,2]
[391257776,1760443844457,-500.0,0.00019452,2]
[391257777,1760443844467,-500.0,0.00019452,2]
[391257778,1760443844477,-500.0,0.00019452,2]
[391257779,1760443844486,-724.9,0.00019452,2]
[391257780,1760443844496,-500.0,0.00019452,2]
[391257781,1760443844505,-500.0,0.00019452,2]
[391257782,1760443844515,-500.0,0.00019452,2]
[391257783,1760443844524,-500.0,0.00019452,2]
[391257784,1760443844534,-934.82740677,0.00019533,2]
[391257785,1760443844543,-198.91677531,0.00019626,2]
[391257786,1760443844554,-934.82740677,0.00019685,2]
[391257787,1760443844563,-1725.0,0.000197,2]
[391257788,1760443844573,-151.0,0.00019723,2]
[391257789,1760443844582,-1956.01,0.00019725,2]
[391257790,1760443844592,-1548.14,0.00019725,2]
[391257791,1760443844602,-500.0,0.00019725,2]
[391257792,1760443844612,-1472.64,0.00019725,2]
[391257793,1760443844622,-1827.09,0.00019725,2]
[391257794,1760443844631,-923.29,0.00019725,2]
[391257795,1760443844641,-500.0,0.00019725,2]
[391257796,1760443844651,-500.0,0.00019725,2]
[391257797,1760443844661,-842.64,0.00019725,2]
[391257798,1760443844671,-1926.85,0.00019725,2]
[391257799,1760443844682,-500.0,0.00019725,2]
[391257800,1760443844694,-592.94,0.00019725,2]
[391257801,1760443844705,-700.64,0.00019725,2]
[391257802,1760443844716,-1701.47,0.00019725,2]
[391257803,1760443844727,-2042.48,0.00019725,2]
[391257804,1760443844737,-981.12,0.00019725,2]
[391257805,1760443844747,-512.81,0.00019725,2]
[391257806,1760443844759,-1650.12,0.00019725,2]
[391257807,1760443844769,-313.46,0.00019725,2]
[391257808,1760443844779,-500.0,0.00019725,2]
[391257809,1760443844789,-739.74,0.00019725,2]
[391257810,1760443844798,-500.0,0.00019725,2]
[391257811,1760443844808,-2306.23,0.00019725,2]
[391257812,1760443844818,-500.0,0.00019725,2]
[391257813,1760443844827,-1338.14,0.00019725,2]
[391257814,1760443844837,-500.0,0.00019725,2]
[391257815,1760443844846,-1529.28,0.00019725,2]
[391257816,1760443844856,-529.77,0.00019725,2]
[391257817,1760443844866,-500.0,0.00019725,2]
[391257818,1760443844876,-500.0,0.00019725,2]
[391257819,1760443844886,-783.37,0.00019725,2]
[391257820,1760443844896,-500.0,0.00019725,2]
[391257821,1760443844906,-1415.24,0.00019725,2]
[391257822,1760443844917,-612.62,0.00019725,2]
[391257823,1760443844926,-500.0,0.00019725,2]
[391257824,1760443844936,-2710.43,0.00019725,2]
[391257825,1760443844946,-500.0,0.00019725,2]
[391257826,1760443844956,-1228.83,0.00019725,2]
[391257827,1760443844966,-500.0,0.00019725,2]
[391257828,1760443844976,-980.24,0.00019725,2]
[391257829,1760443844986,-500.0,0.00019725,2]
[391257830,1760443844995,-2460.96,0.00019725,2]
[391257831,1760443845005,-500.0,0.00019725,2]
[391257832,1760443845015,-3652.58,0.00019725,2]
[391257833,1760443845025,-955.44,0.00019725,2]
[391257834,1760443845036,-500.0,0.00019725,2]
[391257835,1760443845046,-186.46334936,0.00019725,2]
[391257836,1760443845059,-937.28,0.00019725,2]
[391257837,1760443845071,-648.44,0.00019725,2]
[391257838,1760443845081,-378.14,0.00019725,2]
[391257839,1760443845091,-500.0,0.00019726,2]
[391257840,1760443845102,-500.0,0.00019726,2]
[391257841,1760443845112,-500.0,0.00019726,2]
[391257842,1760443845122,-500.0,0.00019726,2]
[391257843,1760443845133,-1916.95,0.00019726,2]
[391257844,1760443845144,-500.0,0.00019726,2]
[391257845,1760443845155,-669.83,0.00019726,2]
[391257846,1760443845165,-697.16,0.00019726,2]
[391257847,1760443845175,-500.0,0.00019726,2]
[391257848,1760443845185,-1050.12,0.00019726,2]
[391257849,1760443845195,-500.0,0.00019726,2]
[391257850,1760443845205,-500.0,0.00019726,2]
[391257851,1760443845214,-500.0,0.00019726,2]
[391257852,1760443845225,-500.0,0.00019726,2]
[391257853,1760443845235,-500.0,0.00019726,2]
[391257854,1760443845244,-500.0,0.00019726,2]
[391257855,1760443845254,-500.0,0.00019726,2]
[391257856,1760443845264,-716.88,0.00019726,2]
[391257857,1760443845274,-1698.19,0.00019726,2]
[391257858,1760443845283,-500.0,0.00019726,2]
[391257859,1760443845294,-500.0,0.00019726,2]
[391257860,1760443845306,-2120.3,0.00019726,2]
[391257861,1760443845316,-937.61,0.00019726,2]
[391257862,1760443845326,-500.0,0.00019726,2]
[391257863,1760443845335,-964.38,0.00019726,2]
[391257864,1760443845344,-790.41,0.00019726,2]
[391257865,1760443845354,-976.92,0.00019726,2]
[391257866,1760443845364,-500.0,0.00019726,2]
[391257867,1760443845374,-500.0,0.00019726,2]
[391257868,1760443845384,-694.38,0.00019726,2]
[391257869,1760443845394,-500.0,0.00019726,2]
[391257870,1760443845404,-500.0,0.00019726,2]
[391257871,1760443845414,-500.0,0.00019726,2]
[391257872,1760443845424,-500.0,0.00019726,2]
[391257873,1760443845433,-1450.47,0.00019726,2]
[391257874,1760443845443,-500.0,0.00019726,2]
[391257875,1760443845452,-500.0,0.00019726,2]
[391257876,1760443845462,-500.0,0.00019726,2]
[391257877,1760443845472,-500.0,0.00019726,2]
[391257878,1760443845482,-500.0,0.00019726,2]
[391257879,1760443845492,-768.32,0.00019726,2]
[391257880,1760443845502,-500.0,0.00019726,2]
[391257881,1760443845511,-500.0,0.00019726,2]
[391257882,1760443845521,-790.67,0.00019726,2]
[391257883,1760443845531,-500.0,0.00019726,2]
[391257884,1760443845541,-500.0,0.00019726,2]
[391257885,1760443845551,-625.87,0.00019726,2]
[391257886,1760443845562,-500.0,0.00019726,2]
[391257887,1760443845571,-500.0,0.00019726,2]
[391257888,1760443845582,-500.0,0.00019726,2]
[391257889,1760443845592,-500.0,0.00019726,2]
[391257890,1760443845602,-500.0,0.00019726,2]
[391257891,1760443845612,-500.0,0.00019726,2]
[391257892,1760443845621,-500.0,0.00019726,2]
[391257893,1760443845631,-500.0,0.00019726,2]
[391257894,1760443845641,-500.0,0.00019726,2]
[391257895,1760443845651,-1396.46,0.00019726,2]
[391257896,1760443845663,-500.0,0.00019726,2]
[391257897,1760443845673,-500.0,0.00019726,2]
[391257898,1760443845684,-698.8,0.00019726,2]
[391257899,1760443845694,-500.0,0.00019726,2]
[391257900,1760443845704,-500.0,0.00019726,2]
[391257901,1760443845860,-2585.36,0.00019726,2]
[391257902,1760443845870,-499.07563827,0.00019726,2]
[391257903,1760443845880,-500.0,0.00019726,2]
[391257904,1760443845890,-500.0,0.00019726,2]
[391257905,1760443845899,-500.0,0.00019726,2]
[391257906,1760443845909,-500.0,0.00019726,2]
[391257907,1760443845918,-1350.45,0.00019726,2]
[391257908,1760443845928,-500.0,0.00019726,2]
[391257909,1760443845937,-685.87,0.00019726,2]
[391257910,1760443845946,-500.0,0.00019726,2]
[391257911,1760443845955,-516.18,0.00019726,2]
[391257912,1760443845965,-500.0,0.00019726,2]
[391257913,1760443845974,-500.0,0.00019726,2]
[391257914,1760443845983,-1901.83,0.00019726,2]
[391257915,1760443845992,-2217.6,0.00019726,2]
[391257916,1760443846001,-500.0,0.00019726,2]
[391257917,1760443846011,-500.0,0.00019726,2]
[391257918,1760443846019,-778.64,0.00019726,2]
[391257919,1760443846029,-500.0,0.00019726,2]
[391257920,1760443846038,-500.0,0.00019726,2]
[391257921,1760443846047,-500.0,0.00019726,2]
[391257922,1760443846058,-690.09,0.00019726,2]
[391257923,1760443846071,-1026.19,0.00019726,2]
[391257924,1760443846081,-500.0,0.00019726,2]
[391257925,1760443846091,-500.0,0.00019726,2]
[391257926,1760443846100,-500.0,0.00019726,2]
[391257927,1760443846110,-2103.2,0.00019726,2]
[391257928,1760443846119,-663.56,0.00019726,2]
[391257929,1760443846128,-500.0,0.00019726,2]
[391257930,1760443846138,-602.54,0.00019726,2]
[391257931,1760443846148,-1327.21,0.00019726,2]
[391257932,1760443846157,-1305.84,0.00019726,2]
[391257934,1760443846167,-500.0,0.00019726,2]
[391257936,1760443846177,-1499.77,0.00019726,2]
[391257938,1760443846186,-500.0,0.00019726,2]
[391257940,1760443846196,-500.0,0.00019726,2]
[391257942,1760443846205,-500.0,0.00019726,2]
[391257944,1760443846214,-500.0,0.00019726,2]
[391257946,1760443846224,-1385.53,0.00019726,2]
[391257948,1760443846234,-500.0,0.00019726,2]
[391257950,1760443846243,-500.0,0.00019726,2]
[391257952,1760443846252,-836.13,0.00019726,2]
[391257954,1760443846262,-500.0,0.00019726,2]
[391257957,1760443846271,-3148.34,0.00019726,2]
[391257959,1760443846280,-555.13,0.00019726,2]
[391257961,1760443846289,-500.0,0.00019726,2]
[391257963,1760443846298,-651.19,0.00019726,2]
[391257965,1760443846309,-500.0,0.00019726,2]
[391257967,1760443846318,-1655.59,0.00019726,2]
[391257969,1760443846327,-500.0,0.00019726,2]
[391257971,1760443846337,-500.0,0.00019726,2]
[391257973,1760443846346,-620.33420732,0.00019726,2]
[391257975,1760443846355,-500.0,0.00019726,2]
[391257977,1760443846366,-589.4,0.00019726,2]
[391257979,1760443846375,-500.0,0.00019726,2]